{"text_format":"1","workbook":"xlsx","n_sheets":1,"sheets":["Lista della spesa"],"not_rendered":{"charts":0,"images":1,"macros":0,"external_links":1,"defined_names":3,"comments":0,"pivot_tables":0},"unopened":[],"bounds":{"document_bytes":16777216,"sheet_cells":100000,"rows_first":2000,"rows_last":500,"rows_between":2000,"halvings":0,"cell_chars":16384,"cell_head_chars":4096},"cells_cut":0,"cells_raw":0,"read":"whole","date_system":"1900"}

{"sheet":"Lista della spesa","index":0,"n_rows":31,"n_cols":8,"rows_kept":31,"cut":false,"hidden":false,"merged":[[1,1,1,2]]}
[null,"Lista della spesa"]
[null,"DATA"]
[null,"Fatto?","Articolo","Categoria","Quantità","Prezzo","Prezzo complessivo","Marca/commenti"]
[null,null,"Arance","Ortofrutta",null,null,{"$f":"IFERROR(SUM(ListaSpesa[Quantità]*ListaSpesa[Prezzo]), \"\")","v":0}]
[null,null,"Mele","Ortofrutta",null,null,{"$f":"IFERROR(SUM(ListaSpesa[Quantità]*ListaSpesa[Prezzo]), \"\")","v":0}]
[null,null,"Banane","Ortofrutta",null,null,{"$f":"IFERROR(SUM(ListaSpesa[Quantità]*ListaSpesa[Prezzo]), \"\")","v":0}]
[null,null,"Lattuga","Ortofrutta",null,null,{"$f":"IFERROR(SUM(ListaSpesa[Quantità]*ListaSpesa[Prezzo]), \"\")","v":0}]
[null,null,"Pomodori","Ortofrutta",null,null,{"$f":"IFERROR(SUM(ListaSpesa[Quantità]*ListaSpesa[Prezzo]), \"\")","v":0},"  "]
[null,null,"Latte ","Latticini",null,null,{"$f":"IFERROR(SUM(ListaSpesa[Quantità]*ListaSpesa[Prezzo]), \"\")","v":0}]
[null,null,"Formaggio","Latticini",null,null,{"$f":"IFERROR(SUM(ListaSpesa[Quantità]*ListaSpesa[Prezzo]), \"\")","v":0}]
[null,null,"Uova","Latticini",null,null,{"$f":"IFERROR(SUM(ListaSpesa[Quantità]*ListaSpesa[Prezzo]), \"\")","v":0}]
[null,null,"Formaggio in fiocchi","Latticini",null,null,{"$f":"IFERROR(SUM(ListaSpesa[Quantità]*ListaSpesa[Prezzo]), \"\")","v":0}]
[null,null,"Manzo","Carne",null,null,{"$f":"IFERROR(SUM(ListaSpesa[Quantità]*ListaSpesa[Prezzo]), \"\")","v":0}]
[null,null,"Pollame","Carne",null,null,{"$f":"IFERROR(SUM(ListaSpesa[Quantità]*ListaSpesa[Prezzo]), \"\")","v":0}]
[null,null,"Prosciutto","Carne",null,null,{"$f":"IFERROR(SUM(ListaSpesa[Quantità]*ListaSpesa[Prezzo]), \"\")","v":0}]
[null,null,"Succo","Bevande",null,null,{"$f":"IFERROR(SUM(ListaSpesa[Quantità]*ListaSpesa[Prezzo]), \"\")","v":0}]
[null,null,"Caffè","Bevande",null,null,{"$f":"IFERROR(SUM(ListaSpesa[Quantità]*ListaSpesa[Prezzo]), \"\")","v":0}]
[null,null,"Tè","Bevande",null,null,{"$f":"IFERROR(SUM(ListaSpesa[Quantità]*ListaSpesa[Prezzo]), \"\")","v":0}]
[null,null,"Acqua","Bevande",null,null,{"$f":"IFERROR(SUM(ListaSpesa[Quantità]*ListaSpesa[Prezzo]), \"\")","v":0}]
[null,null,"Spaghetti","Pasta",null,null,{"$f":"IFERROR(SUM(ListaSpesa[Quantità]*ListaSpesa[Prezzo]), \"\")","v":0}]
[null,null,"Riso","Pasta",null,null,{"$f":"IFERROR(SUM(ListaSpesa[Quantità]*ListaSpesa[Prezzo]), \"\")","v":0}]
[null,null,"Cibo in scatola","Minestre",null,null,{"$f":"IFERROR(SUM(ListaSpesa[Quantità]*ListaSpesa[Prezzo]), \"\")","v":0}]
[null,null,"Mix essiccato","Minestre",null,null,{"$f":"IFERROR(SUM(ListaSpesa[Quantità]*ListaSpesa[Prezzo]), \"\")","v":0}]
[null,null,"Pane","Prodotti da forno",null,null,{"$f":"IFERROR(SUM(ListaSpesa[Quantità]*ListaSpesa[Prezzo]), \"\")","v":0}]
[null,null,"Patatine","Snack",null,null,{"$f":"IFERROR(SUM(ListaSpesa[Quantità]*ListaSpesa[Prezzo]), \"\")","v":0}]
[null,null,"Brezel","Snack",null,null,{"$f":"IFERROR(SUM(ListaSpesa[Quantità]*ListaSpesa[Prezzo]), \"\")","v":0}]
[null,null,"Gelato","Snack",null,null,{"$f":"IFERROR(SUM(ListaSpesa[Quantità]*ListaSpesa[Prezzo]), \"\")","v":0}]
[null,null,"Biscotti","Snack",null,null,{"$f":"IFERROR(SUM(ListaSpesa[Quantità]*ListaSpesa[Prezzo]), \"\")","v":0}]
[null,null,"Piatti di carta","Scorte",null,null,{"$f":"IFERROR(SUM(ListaSpesa[Quantità]*ListaSpesa[Prezzo]), \"\")","v":0}]
[null,null,"Tovaglioli","Scorte",null,null,{"$f":"IFERROR(SUM(ListaSpesa[Quantità]*ListaSpesa[Prezzo]), \"\")","v":0}]
[null,null,null,null,null,null,{"$f":"SUBTOTAL(109,ListaSpesa[Prezzo complessivo])","v":0}]